bitfinex-derivatives/quotes_ETHF0:USTF0_20241129
["timestamp","ask_amount","ask_price","bid_price","bid_amount"]
[1732890935716,3.2078,3615.6,3614.7,3.2078]
[1732890935717,2.04,3615.6,3614.7,3.2078]
[1732890936217,2.04,3615.6,3615.1,3.2078]
[1732890936734,2.31648,3615.6,3615.1,3.2078]
[1732890936919,0.27649,3615.4,3615.1,3.2078]
[1732890937114,0.2765,3615.3,3615.1,3.2078]
[1732890937310,0.27648,3615.7,3615.1,3.2078]
[1732890937512,1.09,3615.7,3615.1,3.2078]
[1732890937912,0.27649,3615.5,3615.1,3.2078]
[1732890938118,0.03,3615.5,3615.1,3.2078]
[1732890938316,0.30649,3615.5,3615.1,3.2078]
[1732890938717,0.03,3615.5,3615.1,3.2078]
[1732890938918,3.2078,3615.3,3614.5,3.2078]
[1732890939110,3.5678,3615.3,3614.5,3.2078]
[1732890939418,3.5678,3615.3,3614.2,1.936]
[1732890939419,0.27654,3614.8,3614.2,1.936]
[1732890939614,0.02,3614.8,3614.2,1.936]
[1732890940015,0.29654,3614.8,3614.2,1.936]
[1732890940217,0.02,3614.8,3614.2,1.936]
[1732890940420,0.27657,3614.4,3614.1,3.2078]
[1732890940723,3.2078,3614.9,3614.1,3.2078]
[1732890941022,3.9778,3614.9,3614.1,3.2078]
[1732890941220,3.2078,3615.2,3614.2,0.69147]
[1732890941422,3.2078,3617.0,3615.1,0.69129]
[1732890941619,3.2078,3616.6,3615.7,3.2078]
[1732890941916,8.09874246,3616.6,3615.7,3.2078]
[1732890942118,4.89094246,3616.6,3615.7,3.2078]
[1732890942421,2.2064,3616.6,3616.1,3.2078]
[1732890942616,1.93,3616.6,3616.1,3.2078]
[1732890943415,1.93,3616.6,3616.5,3.2078]
[1732890946016,2.2064,3616.6,3616.5,3.2078]
[1732890946223,1.93,3616.6,3616.5,3.2078]
[1732890946523,2.2064,3616.6,3616.5,3.2078]
[1732890946822,1.93,3616.6,3615.4,0.9886]
[1732890947024,0.27643,3616.3,3615.7,3.2078]
[1732890947221,0.38,3616.3,3615.7,3.2078]
[1732890947827,0.27643,3616.2,3615.7,3.2078]
[1732890948031,0.16,3616.2,3615.7,3.2078]
[1732890948921,0.27644,3616.1,3615.7,3.2078]
[1732890949123,0.01913753,3616.0,3615.7,3.2078]
[1732890949323,0.14913753,3616.0,3615.7,3.2078]
[1732890949529,0.27646,3615.8,3615.7,3.2078]
[1732890949723,0.31646,3615.8,3615.7,3.2078]
[1732890950428,0.01913753,3616.0,3615.7,3.2078]
[1732890950624,0.01913753,3616.0,3615.7,3.48427]
[1732890950833,0.01913753,3616.0,3615.7,3.2078]
[1732890951931,0.01913753,3616.0,3615.9,0.27646]
[1732890953630,0.01913753,3616.0,3615.9,5.27646]
[1732890953834,0.9677977,3617.5,3615.9,5.0]
[1732890953835,0.2769477,3617.5,3615.9,5.0]
[1732890954027,0.27634,3617.4,3617.3,3.2078]
[1732890954329,3.70634,3617.4,3617.3,3.2078]
[1732890954635,3.70634,3617.4,3616.9,3.2078]
[1732890954636,0.27637,3617.0,3616.9,3.2078]
[1732890954930,0.32637,3617.0,3616.9,3.2078]
[1732890955934,0.05,3617.0,3616.9,3.2078]
[1732890958027,0.32637,3617.0,3616.9,3.2078]
[1732890958631,0.32637,3617.0,3616.5,3.2078]
[1732890958632,0.05,3617.0,3616.5,3.2078]
[1732890959033,0.27639,3616.7,3616.5,3.2078]
[1732890959231,0.40639,3616.7,3616.5,3.2078]
[1732890959936,0.4064,3616.7,3616.5,3.2078]
[1732890960428,0.2764,3616.6,3616.5,3.2078]
[1732890960628,0.2864,3616.6,3616.5,3.2078]
[1732890961033,0.01,3616.6,3615.7,3.2078]
[1732890961337,3.2078,3616.5,3615.3,3.2078]
[1732890961630,0.72,3616.5,3616.2,0.27643]
[1732890961834,0.72,3616.5,3616.1,3.2078]
[1732890961835,0.941,3616.9,3616.1,3.2078]
[1732890962027,0.971,3616.9,3616.1,3.2078]
[1732890962230,0.27641,3616.5,3616.1,3.2078]
[1732890962635,0.941,3616.9,3616.1,3.2078]
[1732890962936,1.58917,3616.8,3616.1,3.2078]
[1732890963141,0.27643,3616.3,3616.1,3.2078]
[1732890963340,0.8982,3616.8,3616.1,3.2078]
[1732890963534,1.3682,3616.8,3616.1,3.2078]
[1732890964134,0.27642,3616.4,3616.1,3.2078]
[1732890964335,0.14,3616.4,3616.1,3.2078]
[1732890964536,0.14,3616.4,3616.1,3.48424]
[1732890964832,0.941,3616.9,3616.1,3.2078]
[1732890965038,1.351,3616.9,3616.5,3.2078]
[1732890965834,0.27644,3616.1,3616.0,3.2078]
[1732890966035,0.08,3616.1,3615.6,3.2078]
[1732890966239,0.08,3616.1,3615.2,3.2078]
[1732890966240,0.27648,3615.6,3615.2,3.2078]
[1732890966435,1.9057,3616.0,3615.2,6.9178]
[1732890966631,0.27648,3615.7,3615.2,6.9178]
[1732890966837,1.9057,3616.0,3615.2,6.9178]
[1732890967037,0.27646,3615.9,3615.2,6.9178]
[1732890967238,0.27648,3615.7,3615.2,6.9178]
[1732890967543,0.2765,3615.3,3615.2,6.9178]
[1732890967731,0.2765,3615.3,3615.2,3.2078]
[1732890967935,0.27653,3614.9,3614.8,3.2078]
[1732890968237,4.5398,3615.6,3614.8,3.2078]
[1732890968238,0.9007,3615.5,3614.8,3.48433]
[1732890968434,0.13,3615.5,3615.2,3.4843]
[1732890968640,1.9057,3616.0,3615.2,3.2078]
[1732890968840,1.9057,3616.0,3615.9,3.2078]
[1732890969136,0.9326,3616.0,3615.9,3.2078]
[1732890970134,0.27666726,3616.3,3615.9,3.2078]
[1732890970336,0.68309726,3616.3,3615.9,3.2078]
[1732890970542,0.40666726,3616.3,3615.9,3.2078]
[1732890971041,0.27645,3616.0,3615.9,3.2078]
[1732890971235,0.31645,3616.0,3615.9,3.2078]
[1732890971434,0.04,3616.0,3615.9,3.2078]
[1732890971631,0.31645,3616.0,3615.9,3.2078]
[1732890971943,0.04,3616.0,3615.9,3.2078]
[1732890972245,0.04,3616.0,3615.5,3.2078]
[1732890972641,0.27648,3615.6,3615.0,3.2078]
[1732890972838,0.19,3615.6,3615.0,3.2078]
[1732890973153,0.19,3615.6,3615.2,0.27651]
[1732890973337,0.19,3615.6,3615.4,3.2078]
[1732890974034,5.33765294,3616.0,3615.4,3.2078]
[1732890974336,5.33765294,3616.0,3615.4,3.48429]
[1732890974539,5.33765294,3616.1,3615.4,3.48429]
[1732890974743,5.41765294,3616.1,3615.4,3.2078]
[1732890975044,0.27646,3615.9,3615.4,3.2078]
[1732890975239,5.61410294,3616.0,3615.4,3.2078]
[1732890975441,5.61411294,3615.9,3615.4,3.2078]
[1732890975647,0.27646,3615.8,3615.4,3.2078]
[1732890975851,0.2765,3615.4,3615.0,3.2078]
[1732890976140,5.33765294,3615.5,3615.0,3.2078]
[1732890976345,5.33765294,3615.2,3615.0,3.2078]
[1732890976546,5.61416294,3615.2,3615.0,3.2078]
[1732890976745,5.33765294,3615.2,3615.0,3.2078]
[1732890976947,5.33765294,3615.3,3615.0,3.2078]
[1732890977137,5.33765294,3615.2,3615.0,3.2078]
[1732890977645,5.33765294,3615.2,3614.6,3.2078]
[1732890977646,0.38651,3615.2,3614.6,3.2078]
[1732890977844,5.41730508,3614.9,3614.6,6.4378]
[1732890978349,5.41730508,3615.2,3614.6,6.4378]
[1732890978544,5.56730508,3615.2,3614.6,6.4378]
[1732890978743,0.27653,3615.0,3614.6,6.4378]
[1732890979046,0.27653,3615.0,3614.1,1.917]
[1732890979047,3.2078,3614.7,3614.1,3.2078]
[1732890979243,7.08069508,3614.6,3613.6,3.2078]
[1732890979551,7.08069508,3614.6,3613.6,3.48443]
[1732890979552,5.41730508,3614.5,3613.6,3.48443]
[1732890979743,0.8,3614.5,3613.6,3.2078]
[1732890980047,0.8,3614.5,3614.0,3.2078]
[1732890980256,0.27657,3614.4,3613.7,0.27662]
[1732890980544,0.01,3614.4,3613.6,3.2078]
[1732890981150,0.01,3614.4,3614.3,0.27658]
[1732890981349,5.41730508,3615.1,3614.1,0.69149]
[1732890981547,5.69380508,3615.3,3614.7,3.2078]
[1732890981846,0.9066,3615.4,3614.9,0.27653]
[1732890981847,6.32390508,3615.4,3614.9,0.27653]
[1732890982048,5.41730508,3615.4,3614.8,40.8]
[1732890982253,5.41730508,3615.7,3615.1,3.2078]
[1732890982451,5.41730508,3615.9,3615.6,3.2078]
[1732890982648,5.69376508,3615.9,3615.6,3.2078]
[1732890983145,0.27646,3615.9,3615.6,3.2078]
[1732890983350,5.41730508,3616.1,3615.6,3.2078]
[1732890983553,0.27645,3616.0,3615.6,3.2078]
[1732890983749,5.41730508,3615.9,3615.1,3.2078]
[1732890983945,0.41646,3615.9,3615.3,0.2765]
[1732890984145,0.27647,3615.7,3615.2,0.27651]
[1732890984346,5.41730508,3615.9,3615.5,0.27648]
[1732890984648,5.69377508,3615.8,3615.3,0.2765]
[1732890984954,5.69377508,3615.8,3615.1,3.2078]
[1732890984955,0.27646,3615.8,3615.1,3.2078]
[1732890985152,0.27646,3615.8,3615.3,0.27649]
[1732890985452,5.69376508,3615.9,3615.5,0.27648]
[1732890985644,5.45730508,3615.9,3615.5,3.2078]
[1732890985955,5.43730508,3615.9,3615.5,3.2078]
[1732890986147,5.69376508,3615.9,3615.5,3.48428]
[1732890986449,5.41730508,3615.9,3615.5,3.2078]
[1732890986751,5.41730508,3616.0,3615.5,3.2078]
[1732890986945,0.27646,3615.9,3615.5,3.48428]
[1732890987146,0.27646,3615.8,3615.5,3.2078]
[1732890987546,5.69376508,3615.9,3615.5,3.2078]
[1732890987751,5.69376508,3615.9,3615.5,3.48428]
[1732890988853,0.27646,3615.8,3615.5,3.48428]
[1732890989347,5.41730508,3615.9,3615.5,3.2078]
[1732890989548,5.41730508,3615.9,3614.9,0.9351]
[1732890989549,0.27648,3615.6,3615.2,0.27651]
[1732890989743,5.41730508,3615.8,3615.1,3.2078]
[1732890989943,5.42730508,3615.8,3615.1,3.2078]
[1732890990149,5.69376508,3615.9,3615.1,3.2078]
[1732890990347,5.41730508,3616.0,3615.8,3.2078]
[1732890990647,5.41730508,3616.8,3616.0,0.69113]
[1732890990850,5.41730508,3616.8,3616.7,3.2078]
[1732890991060,0.27639,3616.8,3616.7,3.2078]
[1732890991650,5.69369508,3616.8,3616.7,3.2078]
[1732890991844,5.41730508,3616.8,3616.7,3.2078]
[1732890992050,5.69369508,3616.8,3616.7,3.2078]
[1732890992655,5.41730508,3616.8,3616.3,3.2078]
[1732890992955,5.41730508,3616.8,3615.9,0.9085]
[1732890992956,5.41730508,3616.6,3615.9,0.9085]
[1732890993151,5.41730508,3616.6,3616.3,3.2078]
[1732890993351,0.27674611,3617.1,3616.3,3.2078]
[1732890993352,5.41730508,3616.7,3616.3,3.2078]
[1732890993652,6.68192964,3617.1,3616.5,0.27641]
[1732890993653,5.41730508,3616.6,3616.5,0.27641]
[1732890993851,5.41730508,3616.6,3616.3,3.2078]
[1732890994359,5.41730508,3616.6,3616.5,0.27641]
[1732890994545,5.41730508,3616.7,3616.6,0.2764]
[1732890994950,5.41730508,3616.9,3616.4,0.27642]
[1732890995151,5.69368508,3616.9,3616.6,0.2764]
[1732890995655,5.41730508,3616.9,3616.4,0.27642]
[1732890995955,0.9451,3617.2,3616.3,3.2078]
[1732890995956,5.41730508,3616.8,3616.3,3.2078]
[1732890996147,5.41730508,3617.0,3616.8,0.27639]
[1732890996348,5.41730508,3617.2,3616.7,3.2078]
[1732890996548,0.27639,3616.8,3616.7,3.2078]
[1732890996759,5.41730508,3617.0,3616.7,3.2078]
[1732890996946,5.69368508,3617.0,3616.7,3.2078]
[1732890997453,5.41730508,3617.0,3616.7,3.2078]
[1732890997850,5.41730508,3617.0,3616.7,3.48419]
[1732890998058,5.41730508,3617.0,3616.7,3.2078]
[1732890998252,5.41730508,3617.1,3616.7,3.48419]
[1732890998458,5.69366508,3617.1,3616.7,3.2078]
[1732890998750,5.41730508,3617.4,3617.3,0.27635]
[1732890998951,5.41730508,3617.5,3617.4,0.27634]
[1732890999149,5.69361508,3617.8,3617.4,0.27634]
[1732890999352,0.27632,3617.7,3617.2,3.48415]
[1732890999549,5.69362508,3617.8,3617.2,3.2078]
[1732890999749,0.27633,3617.6,3617.2,3.48415]
[1732890999950,5.41730508,3617.8,3617.2,3.2078]
[1732891000150,5.41730508,3617.9,3617.2,3.2078]
[1732891000352,0.27633,3617.6,3617.2,3.48416]
[1732891000558,0.9256,3618.0,3617.2,3.2078]
[1732891000749,0.27633,3617.6,3617.2,3.48415]
[1732891001250,0.27632,3617.7,3617.2,3.48415]
[1732891001457,0.9256,3618.0,3617.2,3.2078]
[1732891001656,0.27632,3617.7,3617.3,0.27634]
[1732891001855,0.9256,3618.0,3617.2,3.2078]
[1732891002056,0.27634,3617.5,3617.2,3.2078]
[1732891002252,0.27633,3617.6,3617.2,3.48416]
[1732891002550,0.9256,3618.0,3617.2,3.2078]
[1732891002551,6.61947898,3618.0,3617.2,3.2078]
[1732891002757,8.11022898,3618.0,3617.2,3.2078]
[1732891003059,0.27634,3617.5,3617.2,3.2078]
[1732891003550,0.6908,3617.7,3616.8,3.2078]
[1732891003749,0.6908,3617.7,3616.4,0.9463]
[1732891003750,8.62510508,3617.4,3616.4,3.2078]
[1732891003956,9.36144508,3617.4,3616.7,0.27639]
[1732891004256,9.36144508,3617.4,3616.4,3.2078]
[1732891004257,3.6678,3617.4,3616.5,0.27641]
[1732891004553,3.6678,3617.4,3617.2,0.27635]
[1732891004554,3.2078,3617.4,3617.2,0.27635]
[1732891004758,3.2078,3617.4,3617.3,0.27635]
[1732891005349,0.2763,3617.9,3617.2,3.2078]
[1732891005555,0.2763,3617.9,3617.2,3.48415]
[1732891005556,0.27632,3617.7,3617.2,3.48415]
[1732891006051,6.89577898,3618.0,3617.2,3.2078]
[1732891006255,1.5856,3618.0,3617.6,3.48412]
[1732891006460,1.5856,3618.0,3617.7,0.27631]
[1732891006654,0.9256,3618.0,3617.6,3.2078]
[1732891007057,0.27632,3617.7,3617.6,3.2078]
[1732891007351,0.27635,3617.3,3616.8,0.27638]
[1732891007656,0.27636,3617.2,3616.6,3.2078]
[1732891007852,0.28636,3617.2,3616.6,3.2078]
[1732891008153,0.01,3617.2,3616.6,3.2078]
[1732891008354,0.27634,3617.4,3616.6,3.2078]
[1732891008662,0.27634,3617.4,3616.8,0.27638]
[1732891008663,0.27635,3617.3,3616.8,0.27638]
[1732891009160,5.41730508,3617.5,3616.6,3.2078]
[1732891009357,0.27637,3617.0,3616.6,3.2078]
[1732891009659,0.27636,3617.2,3616.6,3.4842]
[1732891009852,6.34330508,3617.4,3616.6,3.2078]
[1732891010053,6.35330508,3617.4,3616.6,3.2078]
[1732891010251,6.35330508,3617.4,3616.6,3.48419]
[1732891010452,0.936,3617.4,3616.6,3.2078]
[1732891010663,5.41730508,3617.8,3617.0,3.2078]
[1732891010956,5.41730508,3617.9,3617.0,3.2078]
[1732891011163,0.04,3617.9,3617.2,0.27635]
[1732891011360,0.27632,3617.7,3617.2,0.27635]
[1732891011559,0.27631,3617.8,3617.3,0.27634]
[1732891011755,10.47670508,3618.0,3617.4,3.2078]
[1732891011756,0.27632,3617.7,3617.4,3.2078]
[1732891011956,7.26890508,3618.0,3617.4,3.2078]
[1732891012160,1.8516,3618.0,3617.4,3.2078]
[1732891012356,2.1279,3618.0,3617.4,3.2078]
[1732891012662,0.2763,3617.9,3617.5,0.27633]
[1732891012960,0.9256,3618.0,3617.7,0.27631]
[1732891013156,0.9256,3618.0,3617.8,3.2078]
[1732891013358,0.2763,3617.9,3617.8,3.2078]
[1732891013561,0.9256,3618.0,3617.3,3.2078]
[1732891013764,0.9256,3618.0,3617.4,0.27634]
[1732891013765,0.2763,3617.9,3617.4,0.27634]
[1732891014059,0.9256,3618.0,3617.5,0.27633]
[1732891014060,1.2019,3618.0,3617.5,0.27633]
[1732891014259,1.2019,3618.0,3617.3,3.48414]
[1732891014260,0.27631,3617.8,3617.3,3.48414]
[1732891014464,0.9256,3618.0,3617.3,3.2078]
[1732891014761,0.9256,3618.0,3617.4,0.27634]
[1732891014762,1.2019,3618.0,3617.4,0.27634]
[1732891014958,3.48409,3618.1,3617.6,0.27632]
[1732891015160,0.27629,3618.0,3617.3,3.2078]
[1732891015352,0.27629,3618.0,3617.4,0.27634]
[1732891015554,0.27629,3618.0,3617.3,3.2078]
[1732891015555,3.2078,3618.1,3617.6,0.27632]
[1732891015754,3.2078,3618.1,3617.4,0.27634]
[1732891015962,0.27632,3617.7,3617.3,3.2078]
[1732891016555,0.27634,3617.5,3617.3,3.2078]
[1732891016757,0.27632,3617.8,3617.1,0.27636]
[1732891016957,3.2078,3618.1,3616.9,3.2078]
[1732891017153,3.3178,3618.1,3617.3,3.48414]
[1732891017353,3.3178,3618.1,3617.3,3.2078]
[1732891017659,3.2078,3617.5,3616.7,3.2078]
[1732891017857,0.8866,3617.4,3616.7,3.2078]
[1732891018163,1.16294,3617.4,3616.8,0.27639]
[1732891018367,1.16294,3617.4,3616.7,3.48419]
[1732891018560,0.8866,3617.4,3616.8,0.27639]
[1732891018770,0.8866,3617.4,3616.7,3.2078]
[1732891018957,1.16294,3617.4,3616.8,0.27638]
[1732891019264,0.8866,3617.4,3616.7,3.2078]
[1732891019460,1.16295,3617.4,3616.8,0.27638]
[1732891019663,0.27637,3617.1,3616.7,3.2078]
[1732891019961,0.9456,3617.3,3616.7,3.2078]
[1732891020663,0.27636,3617.2,3616.7,3.2078]
[1732891020862,1.22195,3617.3,3616.7,3.48419]
[1732891021063,0.27636,3617.2,3616.7,3.2078]
[1732891021266,1.22195,3617.3,3616.7,3.48419]
[1732891021565,3.2078,3617.2,3616.7,3.2078]
[1732891021762,3.2078,3617.2,3616.1,0.9371]
[1732891021763,3.2078,3617.2,3616.3,3.2078]
[1732891021958,0.9456,3617.3,3616.7,3.2078]
[1732891022165,0.27638,3616.9,3616.7,3.2078]
[1732891022460,0.27657238,3617.9,3616.8,3.2078]
[1732891022660,5.41730508,3618.1,3617.2,3.2078]
[1732891022862,0.2763,3618.0,3617.4,0.27634]
[1732891023063,5.41730508,3618.1,3617.6,3.2078]
[1732891023367,0.2763,3618.0,3617.6,3.2078]
[1732891023766,3.2078,3618.1,3617.2,3.2078]
[1732891023969,0.27629,3618.0,3617.4,0.27634]
[1732891024263,0.27629,3618.0,3617.4,1.78634]
[1732891024456,3.2078,3618.1,3617.4,1.51]
[1732891024660,0.27631,3617.8,3617.4,1.51]
[1732891024859,3.2078,3618.1,3617.4,1.51]
[1732891025063,0.27631,3617.8,3617.4,1.51]
[1732891025263,3.2078,3618.1,3617.4,1.51]
[1732891025568,3.3178,3618.1,3617.4,1.51]
[1732891025960,0.27634,3617.4,3616.8,3.2078]
[1732891026156,0.27633,3617.6,3616.8,4.8978]
[1732891026367,0.29633,3617.6,3616.8,4.8978]
[1732891026664,0.02,3617.6,3616.8,4.8978]
[1732891027171,0.27633,3617.5,3617.0,0.27637]
[1732891027466,3.2078,3617.7,3616.8,3.2078]
[1732891027667,4.4878,3617.7,3616.8,3.5378]
[1732891027971,0.27633,3617.6,3617.1,0.27636]
[1732891028166,0.02,3617.6,3616.8,3.2078]
[1732891028367,0.29633,3617.6,3617.0,0.27637]
[1732891028566,0.29633,3617.6,3617.1,0.27636]
[1732891028774,0.29633,3617.6,3616.8,3.2078]
[1732891028964,0.29633,3617.6,3616.8,3.8578]
[1732891029166,0.02,3617.6,3616.8,3.8578]
[1732891029364,0.27633,3617.5,3617.0,0.27637]
[1732891029569,3.2078,3617.7,3616.8,3.2078]
[1732891029767,0.27634,3617.5,3617.0,0.27637]
[1732891029970,0.27633,3617.6,3617.1,0.27636]
[1732891030274,0.29633,3617.6,3617.1,0.27636]
[1732891030473,0.27633,3617.5,3617.1,0.27636]
[1732891030677,0.27633,3617.6,3617.1,0.27636]
[1732891030878,0.27632,3617.6,3617.1,0.27636]
[1732891031068,3.2078,3617.7,3617.0,0.27637]
[1732891031264,0.27634,3617.5,3617.0,0.27637]
[1732891031468,0.27634,3617.5,3616.8,3.2078]
[1732891031673,3.2078,3617.7,3616.8,5.8478]
[1732891031969,5.69213773,3617.8,3617.4,0.27634]
[1732891032178,4.4398,3618.1,3617.6,0.27632]
[1732891032179,5.41582773,3617.9,3617.6,0.27632]
[1732891032473,5.69212773,3618.0,3617.6,0.27632]
[1732891032673,5.69212773,3618.0,3617.1,3.9791559]
[1732891032674,5.41582773,3618.1,3617.7,3.2078]
[1732891033066,0.27629,3618.1,3617.7,3.2078]
[1732891033269,5.41582773,3618.1,3617.7,3.2078]
[1732891033475,1.8311,3618.4,3617.7,3.2078]
[1732891033476,5.41582773,3618.0,3617.7,3.2078]
[1732891034378,5.42030574,3618.1,3617.9,0.2763]
[1732891034570,5.42030574,3618.2,3617.8,0.27631]
[1732891034770,5.42030574,3618.2,3618.0,0.27629]
[1732891034980,0.8778,3618.4,3617.7,3.2078]
[1732891035172,0.2763,3618.0,3617.7,3.2078]
[1732891035773,0.8778,3618.4,3617.7,3.48412]
[1732891035977,2.28848,3618.4,3617.7,3.2078]
[1732891036172,0.2763,3618.0,3617.7,3.2078]
[1732891036575,0.27628,3618.2,3617.8,0.27631]
[1732891036769,6.49899328,3618.5,3617.7,3.2078]
[1732891036975,0.27628,3618.2,3617.8,0.2763]
[1732891037175,6.49899328,3618.5,3617.7,3.2078]
[1732891037473,7.18966328,3618.4,3617.7,3.2078]
[1732891037681,7.52966328,3618.4,3617.7,3.2078]
[1732891037980,0.2763,3618.0,3617.7,3.2078]
[1732891038377,0.27628,3618.2,3617.7,3.48412]
[1732891038577,0.2763,3618.0,3617.7,3.2078]
[1732891039176,6.49899328,3618.2,3617.7,3.2078]
[1732891039782,6.49899328,3618.2,3617.7,3.48411]
[1732891039989,6.77527328,3618.2,3617.7,3.48411]
[1732891040181,6.49899328,3618.1,3617.7,3.2078]
[1732891040677,6.49899328,3618.1,3617.7,3.48411]
[1732891040982,6.49899328,3618.1,3617.8,0.27631]
[1732891041172,6.49899328,3618.1,3617.9,0.2763]
[1732891041371,6.77527328,3618.2,3617.8,0.2763]
[1732891041582,6.49899328,3618.2,3617.7,3.2078]
[1732891042081,6.49899328,3618.2,3617.8,0.27631]
[1732891042277,0.27629,3618.1,3617.8,0.27631]
[1732891042474,6.49899328,3618.2,3617.7,3.2078]
[1732891042979,0.27631,3617.8,3617.7,3.2078]
[1732891043283,0.27631,3617.8,3617.5,0.27633]
[1732891043472,6.49899328,3618.0,3617.3,3.2078]
[1732891043681,6.49899328,3618.0,3616.9,0.9054]
[1732891043682,7.18977328,3617.8,3616.9,3.2078]
[1732891043878,6.49899328,3617.6,3616.9,3.66418]
[1732891044183,6.53899328,3617.6,3616.9,3.3878]
[1732891044380,6.53899328,3617.6,3617.1,0.27636]
[1732891044381,6.49899328,3617.5,3617.1,0.27636]
[1732891044582,0.27634,3617.4,3617.1,0.46636]
[1732891044777,6.49899328,3617.5,3616.9,3.2078]
[1732891045280,6.77534328,3617.4,3617.0,0.27637]
[1732891045487,0.27635,3617.3,3616.9,3.48417]
[1732891045681,6.49899328,3617.4,3616.9,3.2078]
[1732891045888,6.49899328,3617.4,3616.7,2.0866559]
[1732891045889,6.49899328,3617.6,3617.3,3.2078]
[1732891046183,6.77531328,3617.8,3617.3,3.2078]
[1732891046387,6.49899328,3617.7,3617.3,3.2078]
[1732891046776,0.27633,3617.6,3617.3,3.48414]
[1732891046974,6.49899328,3617.6,3617.4,0.27634]
[1732891047189,6.77531328,3617.7,3617.4,0.27634]
[1732891047488,6.49899328,3617.6,3617.5,0.27633]
[1732891047675,6.49899328,3617.6,3617.3,3.2078]
[1732891047985,6.49899328,3617.6,3617.4,0.27633]
[1732891048481,6.49899328,3617.6,3617.3,3.2078]
[1732891048685,6.49899328,3617.5,3617.3,3.2078]
[1732891048885,6.49899328,3617.4,3616.6,3.2078]
[1732891049080,0.27636,3617.2,3616.8,0.27638]
[1732891049281,6.49899328,3617.3,3616.8,0.27638]
[1732891049282,6.49899328,3617.3,3616.8,0.64639]
[1732891049585,6.49899328,3617.4,3617.0,3.2078]
[1732891049790,6.52899328,3617.4,3617.0,3.2078]
[1732891050083,0.03,3617.4,3617.3,0.27635]
[1732891050382,6.49899328,3618.0,3617.3,0.66]
[1732891050582,6.49899328,3618.0,3617.9,3.4841]
[1732891050786,6.49899328,3618.1,3618.0,0.27629]
[1732891050983,6.49899328,3618.1,3617.9,3.5978]
[1732891050984,6.49899328,3618.1,3617.9,3.2078]
[1732891051284,6.77528328,3618.1,3617.9,1.5263]
[1732891051479,6.49899328,3618.1,3618.0,0.27629]
[1732891051680,6.49899328,3618.1,3617.6,3.2078]
[1732891051881,6.49899328,3618.1,3617.9,0.2763]
[1732891052081,6.49899328,3618.1,3617.9,1.6863]
[1732891052281,6.49899328,3618.1,3618.0,0.27629]
[1732891052877,6.49899328,3618.1,3617.6,3.2078]
[1732891053085,6.77526328,3618.3,3618.1,0.27629]
[1732891053285,6.49899328,3618.3,3617.6,3.2078]
[1732891053598,6.49899328,3618.3,3617.7,0.27631]
[1732891053599,0.2763,3618.0,3617.7,0.27631]
[1732891053892,6.49899328,3618.3,3617.8,0.2763]
[1732891054189,7.44959328,3618.2,3617.8,0.32]
[1732891054393,0.2763,3618.0,3617.8,0.32]
[1732891054592,0.2763,3618.0,3617.8,0.59631]
[1732891055092,7.72587328,3618.2,3617.9,0.2763]
[1732891055289,7.72587328,3618.2,3617.8,0.2763]
[1732891055290,0.27629,3618.1,3617.8,0.2763]
[1732891055485,0.27629,3618.1,3617.8,0.35]
[1732891055682,10.65739328,3618.2,3617.2,3.2078]
[1732891055900,0.2763,3618.0,3617.7,0.27632]
[1732891056192,6.49899328,3618.1,3617.2,3.2078]
[1732891056390,6.49899328,3617.9,3617.2,5.6278]
[1732891056589,0.27631,3617.8,3617.4,0.27634]
[1732891056893,6.49899328,3617.9,3617.4,0.49]
[1732891057191,6.77530328,3617.8,3617.4,0.49]
[1732891057384,6.49899328,3617.8,3617.6,0.27632]
[1732891057591,6.49899328,3617.8,3617.5,0.27633]
[1732891057886,6.49899328,3617.9,3617.7,0.27632]
[1732891058094,6.49899328,3618.0,3617.6,3.2078]
[1732891058286,6.77528328,3618.1,3617.7,0.27631]
[1732891058594,6.49899328,3618.0,3617.7,0.27631]
[1732891058793,0.27631,3617.8,3617.6,3.2078]
[1732891058994,6.49899328,3618.1,3617.6,3.2078]
[1732891059297,0.2763,3618.0,3617.6,3.48412]
[1732891059594,6.77529328,3618.0,3617.6,3.48412]
[1732891059788,6.49899328,3618.0,3617.6,3.2078]
[1732891060091,6.49899328,3618.1,3617.8,0.27631]
[1732891060395,7.72587328,3618.2,3617.8,0.27631]
[1732891060596,7.72587328,3618.2,3618.0,3.2078]
[1732891060799,1.22688,3618.2,3618.0,3.2078]
[1732891060994,1.22688,3618.2,3617.8,0.27631]
[1732891060995,7.72587328,3618.2,3617.8,0.27631]
[1732891061195,6.51666383,3618.0,3617.8,0.2763]
[1732891061492,6.51666383,3618.0,3617.6,3.2078]
[1732891061893,6.51666383,3618.0,3617.8,0.27631]
[1732891062094,6.51666383,3618.0,3617.6,3.2078]
[1732891062583,6.51666383,3618.0,3617.9,0.2763]
[1732891063096,6.51666383,3618.1,3618.0,0.27629]
[1732891063486,0.9506,3618.2,3617.6,3.2078]
[1732891063487,8.53275882,3618.2,3617.6,3.2078]
[1732891063686,6.51633211,3618.1,3617.9,0.2763]
[1732891063892,6.43377561,3618.1,3618.0,0.27629]
[1732891064092,6.43377561,3618.1,3617.7,0.8976]
[1732891064293,6.43377561,3618.1,3617.8,0.27631]
[1732891064500,5.43377561,3618.1,3618.0,0.27629]
[1732891066597,0.9484,3618.3,3617.7,0.8976]
[1732891066798,0.9484,3618.3,3618.2,0.27628]
[1732891067494,7.85842882,3618.4,3618.2,0.27627]
[1732891068199,7.58215882,3618.6,3617.8,0.8879]
[1732891068402,0.27627,3618.4,3618.2,0.27628]
[1732891068599,7.58215882,3618.6,3617.8,0.8879]
[1732891068898,7.85841882,3618.5,3617.8,0.8879]